fUSD/lending_fUSD_20240119
["ID","MTS","AMOUNT","RATE_DAILY","PERIOD"]
[312140195,1705666353163,-500.0,0.00024913,2]
[312140196,1705666353173,-500.0,0.00024913,2]
[312140197,1705666353184,-730.87,0.00024913,2]
[312140198,1705666353196,-756.0,0.00024913,2]
[312140199,1705666353207,-709.1,0.00024913,2]
[312140200,1705666353218,-500.0,0.00024913,2]
[312140201,1705666353229,-681.37,0.00024913,2]
[312140202,1705666353240,-500.0,0.00024913,2]
[312140203,1705666353251,-626.37,0.00024913,2]
[312140204,1705666353262,-500.0,0.00024913,2]
[312140205,1705666353273,-500.0,0.00024913,2]
[312140206,1705666353284,-500.0,0.00024913,2]
[312140207,1705666353295,-500.0,0.00024913,2]
[312140208,1705666353309,-500.0,0.00024913,2]
[312140209,1705666353321,-926.69,0.00024913,2]
[312140210,1705666353333,-617.42,0.00024913,2]
[312140211,1705666353345,-618.52,0.00024913,2]
[312140212,1705666353357,-500.0,0.00024913,2]
[312140213,1705666353370,-599.5,0.00024913,2]
[312140214,1705666353381,-500.0,0.00024913,2]
[312140215,1705666353392,-530.48,0.00024913,2]
[312140216,1705666353404,-500.0,0.00024913,7]
[312140217,1705666353416,-500.0,0.00024913,2]
[312140218,1705666353428,-500.0,0.00024913,2]
[312140219,1705666353439,-500.0,0.00024913,2]
[312140220,1705666353451,-500.0,0.00024913,2]
[312140221,1705666353463,-596.7,0.00024913,2]
[312140222,1705666353474,-651.28,0.00024913,2]
[312140223,1705666353486,-869.05,0.00024913,2]
[312140224,1705666353497,-813.98,0.00024913,2]
[312140225,1705666353508,-858.03,0.00024913,2]
[312140226,1705666353520,-1255.83,0.00024913,2]
[312140227,1705666353532,-500.0,0.00024913,2]
[312140228,1705666353544,-501.61510103,0.00024913,2]
[312140229,1705666353555,-1127.81,0.00024913,2]
[312140230,1705666353566,-737.1,0.00024913,2]
[312140231,1705666353578,-500.0,0.00024913,2]
[312140232,1705666353591,-933.45,0.00024913,2]
[312140233,1705666353602,-1285.45,0.00024913,2]
[312140234,1705666353614,-799.51,0.00024913,2]
[312140235,1705666353627,-500.0,0.00024913,2]
[312140236,1705666353639,-1604.6,0.00024913,2]
[312140237,1705666353652,-565.02,0.00024913,2]
[312140238,1705666353664,-247.17712428,0.00024913,2]
[312140239,1705666353675,-500.0,0.00024913,2]
[312140240,1705666353686,-500.0,0.00024913,2]
[312140241,1705666353698,-520.46,0.00024913,2]
[312140242,1705666353710,-500.0,0.00024913,2]
[312140243,1705666353722,-503.44372064,0.00024913,2]
[312140244,1705666353734,-728.86,0.00024913,2]
[312140245,1705666353746,-1264.15,0.00024913,2]
[312140246,1705666353759,-500.0,0.00024913,2]
[312140247,1705666353771,-649.55,0.00024913,2]
[312140248,1705666353783,-500.0,0.00024913,2]
[312140249,1705666353795,-511.23,0.00024913,2]
[312140250,1705666353807,-500.0,0.00024913,2]
[312140251,1705666353819,-977.19,0.00024913,2]
[312140252,1705666353831,-500.0,0.00024913,2]
[312140253,1705666353842,-500.0,0.00024913,2]
[312140254,1705666353856,-1528.44,0.00024913,2]
[312140255,1705666353867,-500.0,0.00024913,2]
[312140256,1705666353879,-500.0,0.00024913,2]
[312140257,1705666353891,-1679.82,0.00024913,2]
[312140258,1705666353902,-627.3,0.00024913,2]
[312140259,1705666353913,-500.0,0.00024913,2]
[312140260,1705666353925,-1835.52,0.00024913,2]
[312140261,1705666353937,-9652.13,0.00024913,2]
[312140262,1705666353950,-515.26,0.00024913,2]
[312140263,1705666353962,-500.0,0.00024913,2]
[312140264,1705666353974,-500.0,0.00024913,2]
[312140265,1705666353986,-500.0,0.00024913,2]
[312140266,1705666353999,-1150.41,0.00024913,2]
[312140267,1705666354011,-500.0,0.00024913,2]
[312140268,1705666354023,-500.0,0.00024913,2]
[312140269,1705666354036,-4685.36,0.00024913,2]
[312140270,1705666354049,-500.0,0.00024913,2]
[312140271,1705666354062,-1244.76,0.00024913,2]
[312140272,1705666354074,-836.26,0.00024913,2]
[312140273,1705666354086,-2001.17,0.00024913,2]
[312140274,1705666354097,-643.71,0.00024913,2]
[312140275,1705666354109,-500.0,0.00024913,2]
[312140276,1705666354123,-500.0,0.00024913,2]
[312140277,1705666354136,-241.89274652,0.00024913,2]
[312140278,1705666354148,-673.35,0.00024913,2]
[312140279,1705666354160,-500.0,0.00024913,2]
[312140280,1705666354172,-504.87,0.00024913,2]
[312140281,1705666354185,-771.28,0.00024913,2]
[312140282,1705666354198,-500.0,0.00024913,2]
[312140283,1705666354211,-1538.26,0.00024913,2]
[312140284,1705666354224,-500.0,0.00024913,2]
[312140285,1705666354237,-5075.2,0.00024913,2]
[312140286,1705666354249,-1267.24,0.00024913,2]
[312140287,1705666354262,-1264.86,0.00024913,2]
[312140288,1705666354274,-1609.06,0.00024913,2]
[312140289,1705666354286,-847.45,0.00024913,2]
[312140290,1705666354298,-500.0,0.00024913,2]
[312140291,1705666354311,-500.0,0.00024913,2]
[312140292,1705666354324,-500.0,0.00024913,2]
[312140293,1705666354335,-990.0,0.00024913,2]
[312140294,1705666354346,-3252.2,0.00024913,2]
[312140295,1705666354358,-500.0,0.00024913,2]
[312140296,1705666354371,-500.0,0.00024913,2]
[312140297,1705666354383,-500.0,0.00024913,2]
[312140298,1705666354394,-3626.74,0.00024913,2]
[312140299,1705666354407,-500.0,0.00024913,2]
[312140300,1705666354420,-500.0,0.00024913,2]
[312140301,1705666354432,-770.99,0.00024913,2]
[312140302,1705666354444,-758.67,0.00024913,2]
[312140303,1705666354456,-500.0,0.00024913,2]
[312140304,1705666354468,-7664.11,0.00024913,2]
[312140305,1705666354480,-11303.55,0.00024913,2]
[312140306,1705666354493,-500.0,0.00024913,2]
[312140307,1705666354505,-902.16,0.00024913,2]
[312140308,1705666354517,-500.0,0.00024913,2]
[312140309,1705666354529,-183.60333668,0.00024913,2]
[312140310,1705666354540,-6250.14,0.00024913,2]
[312140311,1705666354552,-664.96,0.00024913,2]
[312140312,1705666354564,-714.13,0.00024913,2]
[312140313,1705666354576,-868.24,0.00024913,2]
[312140314,1705666354588,-462.13,0.00024913,2]
[312140315,1705666354600,-500.0,0.00024913,2]
[312140316,1705666354613,-2960.31,0.00024913,2]
[312140317,1705666354626,-9834.44,0.00024913,2]
[312140318,1705666354638,-2320.43,0.00024913,2]
[312140319,1705666354650,-5976.03,0.00024913,2]
[312140320,1705666354663,-1820.94,0.00024913,2]
[312140321,1705666354675,-823.03,0.00024913,2]
[312140322,1705666354688,-500.0,0.00024913,2]
[312140323,1705666354701,-500.0,0.00024913,2]
[312140324,1705666354714,-505.81,0.00024913,2]
[312140325,1705666354726,-645.27,0.00024913,2]
[312140326,1705666354738,-1021.23,0.00024913,2]
[312140327,1705666354750,-796.93,0.00024913,2]
[312140328,1705666354763,-500.0,0.00024913,2]
[312140329,1705666354775,-500.0,0.00024913,2]
[312140330,1705666354788,-1032.88,0.00024913,2]
[312140331,1705666354800,-470.89623862,0.00024913,2]
[312140332,1705666354813,-560.11,0.00024913,2]
[312140333,1705666354825,-1063.08,0.00024913,2]
[312140334,1705666354838,-978.62,0.00024913,2]
[312140335,1705666354850,-3550.01,0.00024913,2]
[312140336,1705666354863,-500.0,0.00024913,2]
[312140337,1705666354877,-804.89,0.00024913,2]
[312140338,1705666354888,-500.0,0.00024913,2]
[312140339,1705666354900,-500.0,0.00024913,2]
[312140340,1705666354913,-500.0,0.00024913,2]
[312140341,1705666354925,-964.83,0.00024913,2]
[312140342,1705666354939,-1091.51,0.00024913,2]
[312140343,1705666354951,-500.0,0.00024913,2]
[312140344,1705666354964,-758.43,0.00024913,2]
[312140345,1705666354977,-705.91,0.00024913,2]
[312140346,1705666354990,-817.94,0.00024913,2]
[312140347,1705666355002,-500.0,0.00024913,2]
[312140348,1705666355015,-1738.46,0.00024913,2]
[312140349,1705666355027,-500.0,0.00024913,2]
[312140350,1705666355039,-500.0,0.00024913,2]
[312140351,1705666355053,-500.0,0.00024913,2]
[312140352,1705666355065,-609.36,0.00024913,2]
[312140353,1705666355078,-806.41,0.00024913,2]
[312140354,1705666355090,-1056.96,0.00024913,2]
[312140355,1705666355102,-500.0,0.00024913,2]
[312140356,1705666355115,-7058.53,0.00024913,2]
[312140357,1705666355130,-500.0,0.00024913,2]
[312140358,1705666355142,-500.0,0.00024913,2]
[312140359,1705666355155,-500.0,0.00024913,2]
[312140360,1705666355168,-500.0,0.00024913,2]
[312140361,1705666355181,-522.09074554,0.00024913,2]
[312140362,1705666355194,-500.0,0.00024913,2]
[312140363,1705666355206,-500.0,0.00024913,2]
[312140364,1705666355220,-729.56,0.00024913,2]
[312140365,1705666355232,-500.0,0.00024913,2]
[312140366,1705666355244,-500.0,0.00024913,2]
[312140367,1705666355257,-3169.29,0.00024913,2]
[312140368,1705666355270,-1141.43,0.00024913,2]
[312140369,1705666355282,-509.59253373,0.00024913,2]
[312140370,1705666355294,-2249.61,0.00024913,2]
[312140371,1705666355307,-1700.24,0.00024913,2]
[312140372,1705666355319,-507.38665042,0.00024913,2]
[312140373,1705666355332,-500.0,0.00024913,2]
[312140374,1705666355344,-500.0,0.00024913,2]
[312140375,1705666355356,-500.0,0.00024913,2]
[312140376,1705666355369,-579.44,0.00024913,2]
[312140377,1705666355381,-500.0,0.00024913,2]
[312140378,1705666355394,-500.0,0.00024913,2]
[312140379,1705666355406,-2381.28,0.00024913,2]
[312140380,1705666355418,-1446.94,0.00024913,2]
[312140381,1705666355431,-500.0,0.00024913,2]
[312140382,1705666355444,-500.0,0.00024913,2]
[312140383,1705666355456,-500.0,0.00024913,2]
[312140384,1705666355469,-4056.5,0.00024913,2]
[312140385,1705666355482,-500.0,0.00024913,2]
[312140386,1705666355494,-2985.9,0.00024913,2]
[312140387,1705666355508,-500.0,0.00024913,2]
[312140388,1705666355520,-696.64,0.00024913,2]
[312140389,1705666355533,-500.0,0.00024913,2]
[312140390,1705666355545,-4455.73,0.00024913,2]
[312140391,1705666355557,-698.84,0.00024913,2]
[312140392,1705666355569,-994.17,0.00024913,2]
[312140393,1705666355581,-500.0,0.00024913,2]
[312140394,1705666355593,-500.0,0.00024913,2]
[312140395,1705666355606,-1513.75,0.00024913,2]
[312140396,1705666355618,-2003.87,0.00024913,2]
[312140397,1705666355630,-500.0,0.00024913,2]
[312140398,1705666355642,-748.63,0.00024913,2]
[312140399,1705666355654,-902.53,0.00024914,2]
[312140400,1705666355667,-703.38,0.00024914,2]
[312140401,1705666355679,-979.41,0.00024914,2]
[312140402,1705666355691,-631.03,0.00024914,2]
[312140403,1705666355703,-529.79,0.00024914,2]
[312140404,1705666355715,-507.27,0.00024914,2]
[312140405,1705666355727,-594.0,0.00024914,2]
[312140406,1705666355739,-604.23,0.00024914,2]
[312140407,1705666355751,-1297.18,0.00024914,2]
[312140408,1705666355763,-2265.29,0.00024914,2]
[312140409,1705666355776,-562.89,0.00024914,2]
[312140410,1705666355787,-500.0,0.00024914,2]
[312140411,1705666355799,-500.0,0.00024914,2]
[312140412,1705666355812,-500.0,0.00024914,2]
[312140413,1705666355825,-990.94,0.00024914,2]
[312140414,1705666355837,-614.26,0.00024914,2]
[312140415,1705666355849,-735.83,0.00024914,2]
[312140416,1705666355861,-856.19,0.00024914,2]
[312140417,1705666355873,-1419.84,0.00024914,2]
[312140418,1705666355886,-679.32,0.00024914,2]
[312140419,1705666355898,-680.33,0.00024914,2]
[312140420,1705666355910,-614.57,0.00024914,2]
[312140421,1705666355923,-1063.63,0.00024914,2]
[312140422,1705666355935,-1592.94,0.00024914,2]
[312140423,1705666355946,-500.0,0.00024914,2]
[312140424,1705666355958,-727.17,0.00024914,2]
[312140425,1705666355970,-903.46,0.00024914,2]
[312140426,1705666356281,-500.0,0.00024914,2]
[312140427,1705666356301,-1089.66,0.00024914,2]
[312140428,1705666356312,-617.46,0.00024914,2]
[312140429,1705666356324,-1111.8,0.00024914,2]
[312140430,1705666356335,-637.4,0.00024914,2]
[312140431,1705666356347,-1453.62,0.00024914,2]
[312140432,1705666356358,-500.0,0.00024914,2]
[312140433,1705666356370,-1203.6,0.00024914,2]
[312140434,1705666356381,-1735.78,0.00024914,2]
[312140435,1705666356393,-500.0,0.00024914,2]
[312140436,1705666356405,-1641.44,0.00024914,2]
[312140437,1705666356416,-500.0,0.00024914,2]
[312140438,1705666356428,-522.53,0.00024914,2]
[312140439,1705666356440,-1160.79,0.00024914,2]
[312140440,1705666356452,-1647.35,0.00024914,2]
[312140441,1705666356465,-837.65,0.00024914,2]
[312140442,1705666356476,-1818.93,0.00024914,2]
[312140443,1705666356487,-2027.65,0.00024914,2]
[312140444,1705666356499,-1042.11,0.00024914,2]
[312140445,1705666356510,-500.0,0.00024914,2]
[312140446,1705666356521,-981.43,0.00024914,2]
[312140447,1705666356532,-1018.32,0.00024914,2]
[312140448,1705666356544,-3340.96,0.00024914,2]
[312140449,1705666356554,-981.57,0.00024914,2]
[312140450,1705666356565,-924.24,0.00024914,2]
[312140451,1705666356577,-6001.65,0.00024914,2]
[312140452,1705666356588,-1152.74,0.00024914,2]
[312140453,1705666356601,-500.0,0.00024914,2]
[312140454,1705666356614,-1251.53,0.00024914,2]
[312140455,1705666356625,-500.0,0.00024914,2]
[312140456,1705666356636,-1651.82,0.00024914,2]
[312140457,1705666356648,-609.46,0.00024914,2]
[312140458,1705666356659,-502.82,0.00024914,2]
[312140459,1705666356670,-1979.16,0.00024914,2]
[312140460,1705666356681,-1430.36,0.00024914,2]
[312140461,1705666356693,-500.0,0.00024914,2]
[312140462,1705666356705,-542.04,0.00024914,2]
[312140463,1705666356717,-9723.53,0.00024914,2]
[312140464,1705666356729,-4403.92,0.00024914,2]
[312140465,1705666356741,-982.89,0.00024914,2]
[312140466,1705666356753,-1318.74,0.00024914,2]
[312140467,1705666356765,-646.54,0.00024914,2]
[312140468,1705666356777,-4083.32,0.00024914,2]
[312140469,1705666356790,-1199.37,0.00024914,2]
[312140470,1705666356801,-716.72,0.00024914,2]
[312140471,1705666356812,-875.53,0.00024914,2]
[312140472,1705666356824,-17230.42,0.00024914,2]
[312140473,1705666356835,-753.81,0.00024914,2]
[312140474,1705666356847,-836.21,0.00024914,2]
[312140475,1705666356858,-3033.73,0.00024914,2]
[312140476,1705666356869,-500.0,0.00024914,2]
[312140477,1705666356880,-4579.41,0.00024914,2]
[312140478,1705666356891,-500.0,0.00024914,2]
[312140479,1705666356904,-811.94,0.00024914,2]
[312140480,1705666356916,-6926.76,0.00024914,2]
[312140481,1705666356928,-1707.03,0.00024914,2]
[312140482,1705666356940,-1650.31,0.00024914,2]
[312140483,1705666356951,-5046.73,0.00024914,2]
[312140484,1705666356962,-2778.35,0.00024914,2]
[312140485,1705666356974,-1008.17,0.00024914,2]
[312140486,1705666356986,-5761.46,0.00024914,2]
[312140487,1705666356999,-830.39,0.00024914,2]
[312140488,1705666357010,-1035.37,0.00024914,2]
[312140489,1705666357021,-1166.82,0.00024914,2]
[312140490,1705666357033,-520.25,0.00024914,2]
[312140491,1705666357045,-11508.39,0.00024914,2]
[312140492,1705666357058,-730.77,0.00024914,2]
[312140493,1705666357070,-1529.43,0.00024914,2]
[312140494,1705666357082,-602.34,0.00024914,2]
[312140495,1705666357094,-2801.61,0.00024914,2]
[312140496,1705666357106,-596.08,0.00024914,2]
[312140497,1705666357119,-847.54,0.00024914,2]
[312140498,1705666357133,-1307.02,0.00024914,2]
[312140499,1705666357144,-1217.77,0.00024914,2]
[312140500,1705666357156,-1964.39,0.00024914,2]
[312140501,1705666357167,-726.13,0.00024914,2]
[312140502,1705666357178,-2317.69,0.00024914,2]
[312140503,1705666357190,-2438.45,0.00024914,2]
[312140504,1705666357207,-1132.89,0.00024914,2]
[312140505,1705666357220,-500.0,0.00024914,2]
[312140506,1705666357232,-2244.99,0.00024914,2]
[312140507,1705666357244,-2276.25,0.00024914,2]
[312140508,1705666357257,-500.0,0.00024914,2]
[312140509,1705666357269,-2345.08,0.00024914,2]
[312140510,1705666357281,-1779.06,0.00024914,2]
[312140511,1705666357294,-1247.58,0.00024914,2]
[312140512,1705666357306,-150.0,0.00024914,2]
[312140513,1705666357319,-278.94246323,0.00024914,2]
[312140514,1705666357331,-1265.86,0.00024914,2]
[312140515,1705666357344,-4824.73,0.00024914,2]
[312140516,1705666357356,-1351.04,0.00024914,2]
[312140517,1705666357369,-500.0,0.00024915,2]
[312140518,1705666357380,-564.91,0.00024915,2]
[312140519,1705666357392,-500.0,0.00024915,2]
[312140520,1705666357405,-502.41,0.00024915,2]
[312140521,1705666357417,-568.67,0.00024915,2]
[312140522,1705666357429,-500.0,0.00024915,2]
[312140523,1705666357441,-500.0,0.00024915,2]
[312140524,1705666357453,-500.0,0.00024915,2]
[312140525,1705666357465,-500.0,0.00024915,2]
[312140526,1705666357477,-500.0,0.00024915,2]
[312140527,1705666357489,-500.0,0.00024915,2]
[312140528,1705666357503,-579.96,0.00024915,2]
[312140529,1705666357515,-500.0,0.00024915,2]
[312140530,1705666357527,-514.75,0.00024915,2]
[312140531,1705666357539,-842.5,0.00024915,2]
[312140532,1705666357552,-500.0,0.00024915,2]
[312140533,1705666357564,-574.25986015,0.00024915,2]
[312140534,1705666357576,-500.0,0.00024915,2]
[312140535,1705666357587,-500.0,0.00024915,2]
[312140536,1705666357601,-639.73,0.00024915,2]
[312140537,1705666357613,-1003.11,0.00024915,2]
[312140538,1705666357625,-556.18,0.00024915,2]
[312140539,1705666357636,-500.0,0.00024915,2]
[312140540,1705666357648,-500.0,0.00024915,2]
[312140541,1705666357660,-500.0,0.00024915,2]
[312140542,1705666357671,-500.0,0.00024915,2]
[312140543,1705666357684,-500.0,0.00024915,2]
[312140544,1705666357695,-512.0653076,0.00024915,2]
[312140545,1705666357707,-500.0,0.00024915,2]
[312140546,1705666357719,-500.0,0.00024915,2]
[312140547,1705666357730,-500.0,0.00024915,2]
[312140548,1705666357742,-520.06,0.00024915,2]
[312140549,1705666357754,-522.38,0.00024915,2]
[312140550,1705666357766,-951.95,0.00024915,2]
[312140551,1705666357778,-500.0,0.00024915,2]
[312140552,1705666357790,-500.0,0.00024915,2]
[312140553,1705666357804,-500.0,0.00024915,2]
[312140554,1705666357816,-500.0,0.00024915,2]
[312140555,1705666357827,-500.0,0.00024915,2]
[312140556,1705666357839,-394.28229132,0.00024915,2]
[312140557,1705666357852,-500.0,0.00024915,2]
[312140558,1705666357863,-1016.97,0.00024915,2]
[312140559,1705666357875,-500.0,0.00024915,2]
[312140560,1705666357888,-500.0,0.00024915,2]
[312140561,1705666357901,-500.0,0.00024915,2]
[312140562,1705666357912,-500.0,0.00024915,2]
[312140563,1705666357924,-500.0,0.00024915,2]
[312140564,1705666357936,-500.0,0.00024915,2]
[312140565,1705666357949,-500.0,0.00024915,2]
[312140566,1705666357961,-500.0,0.00024915,2]
[312140567,1705666357973,-500.0,0.00024915,2]
[312140568,1705666357986,-500.0,0.00024915,2]
[312140569,1705666357997,-742.91,0.00024915,2]
[312140570,1705666358011,-500.0,0.00024915,2]
[312140571,1705666358023,-500.0,0.00024915,2]
[312140572,1705666358036,-500.0,0.00024915,2]
[312140573,1705666358048,-625.1,0.00024915,2]
[312140574,1705666358060,-500.0,0.00024915,2]
[312140575,1705666358072,-500.0,0.00024915,2]
[312140576,1705666358084,-538.32,0.00024915,2]
[312140577,1705666358097,-500.0,0.00024915,2]
[312140578,1705666358109,-536.45,0.00024915,2]
[312140579,1705666358122,-661.07,0.00024915,2]
[312140580,1705666358137,-500.0,0.00024915,2]
[312140581,1705666358148,-500.0,0.00024915,2]
[312140582,1705666358160,-500.0,0.00024915,2]
[312140583,1705666358171,-501.35,0.00024915,2]
[312140584,1705666358183,-500.0,0.00024915,2]
[312140585,1705666358195,-500.0,0.00024915,2]
[312140586,1705666358207,-500.0,0.00024915,2]
[312140587,1705666358219,-505.27,0.00024915,2]
[312140588,1705666358231,-500.0,0.00024915,2]
[312140589,1705666358242,-1361.89,0.00024915,2]
[312140590,1705666358254,-429.59,0.00024915,2]
[312140591,1705666358266,-930.39,0.00024915,2]
[312140592,1705666358278,-500.0,0.00024915,2]
[312140593,1705666358289,-500.0,0.00024915,2]
[312140594,1705666358301,-500.0,0.00024915,2]
[312140595,1705666358315,-500.0,0.00024915,2]
[312140596,1705666358328,-500.0,0.00024915,2]
[312140597,1705666358339,-500.0,0.00024915,2]
[312140598,1705666358352,-500.0,0.00024915,2]
[312140599,1705666358364,-987.25,0.00024915,2]
[312140600,1705666358375,-500.0,0.00024915,2]
[312140601,1705666358386,-500.0,0.00024915,2]
[312140602,1705666358398,-500.0,0.00024915,2]
[312140603,1705666358409,-500.0,0.00024915,2]
[312140604,1705666358420,-500.0,0.00024915,2]
[312140605,1705666358432,-500.0,0.00024915,2]
[312140606,1705666358444,-804.04,0.00024915,2]
[312140607,1705666358455,-500.0,0.00024915,2]
[312140608,1705666358466,-834.1,0.00024915,2]
[312140609,1705666358478,-500.0,0.00024915,2]
[312140610,1705666358489,-530.68,0.00024915,2]
[312140611,1705666358501,-500.0,0.00024915,2]
[312140612,1705666358512,-2493.17,0.00024915,2]
[312140613,1705666358523,-500.0,0.00024915,2]
[312140614,1705666358534,-882.8,0.00024915,2]
[312140615,1705666358547,-573.74,0.00024915,2]
[312140616,1705666358558,-489.92324145,0.00024915,2]
[312140617,1705666358570,-500.0,0.00024915,2]
[312140618,1705666358581,-615.64,0.00024915,2]
[312140619,1705666358593,-674.04,0.00024915,2]
[312140620,1705666358605,-500.0,0.00024915,2]
[312140621,1705666358618,-500.0,0.00024915,2]
[312140622,1705666358629,-1047.1,0.00024915,2]
[312140623,1705666358640,-500.0,0.00024915,2]
[312140624,1705666358650,-500.0,0.00024915,2]
[312140625,1705666358662,-396.18065488,0.00024915,2]
[312140626,1705666358673,-500.0,0.00024915,2]
[312140627,1705666358684,-830.43,0.00024915,2]
[312140628,1705666358695,-500.0,0.00024915,2]
[312140629,1705666358707,-500.0,0.00024915,2]
[312140630,1705666358720,-500.0,0.00024915,2]
[312140631,1705666358731,-634.94,0.00024915,2]
[312140632,1705666358743,-500.0,0.00024915,2]
[312140633,1705666358754,-833.55,0.00024915,2]
[312140634,1705666358765,-816.25,0.00024915,2]
[312140635,1705666358776,-500.0,0.00024915,2]
[312140636,1705666358788,-793.96,0.00024915,2]
[312140637,1705666358800,-500.0,0.00024915,2]
[312140638,1705666358811,-500.0,0.00024915,2]
[312140639,1705666358823,-500.0,0.00024915,2]
[312140640,1705666358834,-680.83,0.00024915,2]
[312140641,1705666358845,-500.0,0.00024915,2]
[312140642,1705666358857,-1052.77,0.00024915,2]
[312140643,1705666358868,-500.0,0.00024915,2]
[312140644,1705666358879,-500.0,0.00024915,2]
[312140645,1705666358891,-959.44,0.00024915,2]
[312140646,1705666358902,-500.0,0.00024915,2]
[312140647,1705666358914,-500.0,0.00024915,2]
[312140648,1705666358925,-500.0,0.00024915,2]
[312140649,1705666358937,-1805.01,0.00024915,2]
[312140650,1705666358949,-500.0,0.00024915,2]
[312140651,1705666358960,-500.0,0.00024915,2]
[312140652,1705666358972,-500.0,0.00024915,2]
[312140653,1705666358983,-2839.77,0.00024915,2]
[312140654,1705666358996,-790.25,0.00024915,2]
[312140655,1705666359007,-500.0,0.00024915,2]
[312140656,1705666359021,-4249.75,0.00024915,2]
[312140657,1705666359032,-520.62,0.00024915,2]
[312140658,1705666359044,-3411.47,0.00024915,2]
[312140659,1705666359055,-500.0,0.00024915,2]
[312140660,1705666359066,-2837.35,0.00024915,2]
[312140661,1705666359077,-500.0,0.00024915,2]
[312140662,1705666359089,-505.19694071,0.00024915,2]
[312140663,1705666359100,-5228.14,0.00024915,2]
[312140664,1705666359238,-931.26,0.00024915,2]
[312140665,1705666359250,-500.0,0.00024915,2]
[312140666,1705666359261,-500.0,0.00024915,2]
[312140667,1705666359272,-1306.88,0.00024915,5]
[312140668,1705666359284,-500.0,0.00024915,2]
[312140669,1705666359295,-1111.12,0.00024915,2]
[312140670,1705666359307,-629.42,0.00024915,2]
[312140671,1705666359318,-4809.82,0.00024915,2]
[312140672,1705666359330,-305.63701654,0.00024915,2]
[312140673,1705666359341,-5302.03,0.00024915,2]
[312140674,1705666359353,-548.62,0.00024915,2]
[312140675,1705666359363,-500.0,0.00024915,2]
[312140676,1705666359374,-500.0,0.00024915,2]
[312140677,1705666359386,-886.28,0.00024915,2]
[312140678,1705666359397,-877.94,0.00024915,2]
[312140679,1705666359409,-377.78,0.00024915,2]
[312140680,1705666359420,-724.04,0.00024915,2]
[312140681,1705666359431,-3371.7,0.00024915,2]
[312140682,1705666359443,-596.58,0.00024915,2]
[312140683,1705666359453,-500.0,0.00024915,2]
[312140684,1705666359465,-4400.66,0.00024915,2]
[312140685,1705666359477,-500.0,0.00024915,2]
[312140686,1705666359488,-988.81,0.00024915,2]
[312140687,1705666359500,-500.0,0.00024915,2]
[312140688,1705666359511,-827.84,0.00024915,2]
[312140689,1705666359522,-669.84,0.00024915,2]
[312140690,1705666359535,-561.83892286,0.00024915,2]
[312140691,1705666359547,-300.0,0.00024915,2]
[312140692,1705666359558,-558.63,0.00024915,2]
[312140693,1705666359570,-2045.96,0.00024915,2]
[312140694,1705666359582,-3996.45,0.00024915,2]